{"text_format":"2","workbook":"xlsx","n_sheets":5,"sheets":["GENERAL","DISCRETE INPUT - Bits (R)","COILS - Bits (R&W)","INPUT REGISTERS - Words (R)","HOLDING REGISTERS - Words (R&W)"],"not_rendered":{"charts":0,"images":4,"macros":0,"external_links":0,"defined_names":3,"comments":0,"pivot_tables":0},"unopened":[],"bounds":{"document_bytes":16777216,"sheet_cells":100000,"run_cost":"one","rows_first":2000,"rows_last":500,"rows_between":2000,"halvings":0,"cell_chars":16384,"cell_head_chars":4096},"cells_cut":0,"cells_raw":0,"read":"whole","date_system":"1900"}

{"sheet":"GENERAL","index":0,"n_rows":31,"n_cols":8,"rows_kept":31,"cut":false,"hidden":false,"merged":[[14,2,15,2]]}
["MODBUS TABLE ORGANIZATION"]
["Starting Address of the Group Registers (Dec)","Starting Address of the Group Registers (Hex)","System Version (Release)","System Version (Build)","Group Name (Text)","Group Code (Hex)","Group Complexity (Hex)","Group Version (Hex)"]
[{"$f":"HEX2DEC(B3)","v":2096},830,null,null,"State of the Inputs"]
[{"$f":"HEX2DEC(B4)","v":4096},1000,null,null,"Counters"]
[{"$f":"HEX2DEC(B5)","v":4168},1048,null,null,"Settings"]
[{"$f":"HEX2DEC(B6)","v":4242},1092,null,null,"Counter type"]
[{"$f":"HEX2DEC(B7)","v":4244},1094,null,null,"Counters with Tarif"]
[4352,1100,null,null,"Counters"]
[4608,1200,null,null,"Counting as displayed"]
[]
[]
[]
["MODBUS PROTOCOL DETAILS"]
["Function Code (Dec)","Exception Codes (Dec)","Data Encoding"]
[3,"1, 2, 3","\"Big Endian\" (most significant byte first)"]
[16,"1, 2, 3"]
[]
["MODBUS OVER SERIAL DETAILS"]
["Physical Layer","Trasmission Modes","Device Addressing","Baud Rates (bit/s)","Data Bits","Data bits trasmission sequence","Parity","Stop Bits"]
["standard EIA/TIA 485 (RS-485) two-wire configuration","RTU","1÷247","programmable",8,"Least significant bit first","programmable",1]
[]
["MASTER/SLAVE COMMUNICATION TIMING"]
["Timer Descrtiption","Timer Value (msec)"]
["Inter-character time-out","Max. 20"]
["Response delay (from master request)","20÷300"]
["Delay Time (between two master trasmissions)","< 20"]
[]
["REFER ALSO TO:","www.modbus.org","- MODBUS over serial line specification and implementation guide V1.02"]
[null,null,"- MODBUS APPLICATION PROTOCOL SPECIFICATION V1.1b"]
[]
["NOTE:","File and printed copies of this document are not subject to document change control."]

{"sheet":"DISCRETE INPUT - Bits (R)","index":1,"n_rows":1,"n_cols":8,"rows_kept":1,"cut":false,"hidden":false,"merged":[]}
["Register Number","Register Address (Dec)","Register Address (Hex)","Dimension [bit]","Description","Note","Read Function Codes (Dec)","Data Storing (2)"]

{"sheet":"COILS - Bits (R&W)","index":2,"n_rows":2,"n_cols":9,"rows_kept":2,"cut":false,"hidden":false,"merged":[]}
["Register Number","Register Address (Dec)","Register Address (Hex)","Dimension [bit]","Description","Note","Read Function Codes (Dec)","Write Function Codes (Dec)","Data Storing (2)"]
[{"$nulls":4},"(no COILS availables)"]

{"sheet":"INPUT REGISTERS - Words (R)","index":3,"n_rows":157,"n_cols":13,"rows_kept":157,"cut":false,"hidden":false,"merged":[[154,1,154,7],[155,1,155,7],[156,1,156,7],[101,10,106,10],[109,10,112,10],[153,1,153,7],[4,10,9,10],[12,10,15,10],[114,10,141,10],[151,1,151,7],[152,1,152,7],[148,1,148,7],[149,1,149,7],[150,1,150,7],[143,1,143,7],[144,1,144,7],[146,1,146,7],[147,1,147,7],[145,1,145,7],[16,9,27,9],[16,10,27,10],[28,9,39,9],[80,10,99,10],[28,10,39,10],[41,9,52,9],[53,9,64,9],[65,9,76,9],[65,10,76,10]]}
["Register Number","Register Address (Dec)","Register Address (Hex)","Dimension [word]","Bit Position","Description","Type","Scale","Unit","Range","Note","Read Function Code (Dec)","Data Storing (2)"]
[{"$f":"B2+1","v":2097},{"$f":"GENERAL!A3","v":2096},{"$f":"GENERAL!B3","v":830},{"$f":"SUM(D3:D3)","v":2},null,{"$f":"GENERAL!E3","v":"State of the Inputs"}]
[{"$f":"B3+1","v":2097},{"$f":"B2","v":2096},{"$f":"DEC2HEX(B3)","v":"830"},2,null,"State of the Inputs","unsigned integer","-","-",null,"See Note 1"]
[{"$f":"B4+1","v":4097},{"$f":"GENERAL!A4","v":4096},{"$f":"GENERAL!B4","v":1000},{"$f":"SUM(D5:D40)","v":72},null,{"$f":"GENERAL!E4","v":"Counters"}]
[{"$f":"B5+1","v":4097},{"$f":"B4","v":4096},{"$f":"DEC2HEX(B5)","v":"1000"},2,null,"Counter 1","unsigned integer",1,null,null,"See Note 2",{"$f":"3","v":3}]
[{"$f":"B6+1","v":4099},{"$f":"B5+D5","v":4098},"1002",2,null,"Counter 2","unsigned integer",1,null,null,null,{"$f":"3","v":3}]
[4101,{"$f":"B6+D6","v":4100},"1004",2,null,"Counter 3","unsigned integer",1,null,null,null,{"$f":"3","v":3}]
[4103,4102,"1006",2,null,"Counter 4","unsigned integer",1,null,null,null,{"$f":"3","v":3}]
[4105,4104,"1008",2,null,"Counter 5","unsigned integer",1,null,null,null,{"$f":"3","v":3}]
[4107,4106,"100A",2,null,"Counter 6","unsigned integer",1,null,null,null,{"$f":"3","v":3}]
[4109,4108,"100C",2,null,"Counter 7","unsigned integer",1,null,null,"See Note 2 & Note 3",{"$f":"3","v":3}]
[4111,{"$f":"B11+D11","v":4110},"100E",2,null,"Counter 8","unsigned integer",1,null,null,"See Note 2 & Note 3",{"$f":"3","v":3}]
[4113,4112,"1010",2,null,"Counter 9","unsigned integer",1,null,null,"See Note 2",{"$f":"3","v":3}]
[4115,4114,"1012",2,null,"Counter 10","unsigned integer",1,null,null,null,{"$f":"3","v":3}]
[4117,4116,"1014",2,null,"Counter 11","unsigned integer",1,null,null,null,{"$f":"3","v":3}]
[4119,4118,"1016",2,null,"Counter 12","unsigned integer",1,null,null,null,{"$f":"3","v":3}]
[4121,{"$f":"B16+D16","v":4120},"1018",2,null,"Unit Counter 1","unsigned integer",1,null,"0 ÷ 5","0: Pulses\n1: kWh\n2: kvarh\n3: kVAh\n4: m3\n5: Nm3",{"$f":"3","v":3}]
[4123,4122,"101A",2,null,"Unit Counter 2","unsigned integer",1,null,null,null,{"$f":"3","v":3}]
[4125,4124,"101C",2,null,"Unit Counter 3","unsigned integer",1,null,null,null,{"$f":"3","v":3}]
[4127,4126,"101E",2,null,"Unit Counter 4","unsigned integer",1,null,null,null,{"$f":"3","v":3}]
[4129,4128,"1020",2,null,"Unit Counter 5","unsigned integer",1,null,null,null,{"$f":"3","v":3}]
[4131,4130,"1022",2,null,"Unit Counter 6","unsigned integer",1,null,null,null,{"$f":"3","v":3}]
[4133,4132,"1024",2,null,"Unit Counter 7","unsigned integer",1,null,null,null,{"$f":"3","v":3}]
[4135,4134,"1026",2,null,"Unit Counter 8","unsigned integer",1,null,null,null,{"$f":"3","v":3}]
[4137,4136,"1028",2,null,"Unit Counter 9","unsigned integer",1,null,null,null,{"$f":"3","v":3}]
[4139,4138,"102A",2,null,"Unit Counter 10","unsigned integer",1,null,null,null,{"$f":"3","v":3}]
[4141,4140,"102C",2,null,"Unit Counter 11","unsigned integer",1,null,null,null,{"$f":"3","v":3}]
[4143,4142,"102E",2,null,"Unit Counter 12","unsigned integer",1,null,null,null,{"$f":"3","v":3}]
[4145,4144,"1030",2,null,"Weight Counter 1","unsigned integer",1,null,"0 ÷ 6","0: 0,001 (kWh, kvarh, kVA, m3, Nm3)\n1: 0,01 (kWh, kvarh, kVA, m3, Nm3)\n2: 0,1 (kWh, kvarh, kVA, m3, Nm3)\n3: 1 (kWh, kvarh, kVA, m3, Nm3)\n4: 10 (kWh, kvarh, kVA, m3, Nm3)\n5: 100 (kWh, kvarh, kVA, m3, Nm3)\n6: 1000 (kWh, kvarh, kVA, m3, Nm3)   ",{"$f":"3","v":3}]
[4147,4146,"1032",2,null,"Weight Counter 2","unsigned integer",1,null,null,null,{"$f":"3","v":3}]
[4149,4148,"1034",2,null,"Weight Counter 3","unsigned integer",1,null,null,null,{"$f":"3","v":3}]
[4151,4150,"1036",2,null,"Weight Counter 4","unsigned integer",1,null,null,null,{"$f":"3","v":3}]
[4153,4152,"1038",2,null,"Weight Counter 5","unsigned integer",1,null,null,null,{"$f":"3","v":3}]
[4155,4154,"103A",2,null,"Weight Counter 6","unsigned integer",1,null,null,null,{"$f":"3","v":3}]
[4157,4156,"103C",2,null,"Weight Counter 7","unsigned integer",1,null,null,null,{"$f":"3","v":3}]
[4159,4158,"103E",2,null,"Weight Counter 8","unsigned integer",1,null,null,null,{"$f":"3","v":3}]
[4161,4160,"1040",2,null,"Weight Counter 9","unsigned integer",1,null,null,null,{"$f":"3","v":3}]
[4163,4162,"1042",2,null,"Weight Counter 10","unsigned integer",1,null,null,null,{"$f":"3","v":3}]
[4165,4164,"1044",2,null,"Weight Counter 11","unsigned integer",1,null,null,null,{"$f":"3","v":3}]
[4167,4166,"1046",2,null,"Weight Counter 12","unsigned integer",1,null,null,null,{"$f":"3","v":3}]
[{"$f":"B41+1","v":4169},{"$f":"GENERAL!A5","v":4168},{"$f":"GENERAL!B5","v":1048},{"$f":"SUM(D42:D77)","v":72},null,{"$f":"GENERAL!E5","v":"Settings"}]
[{"$f":"B42+1","v":4169},{"$f":"B41","v":4168},{"$f":"DEC2HEX(B42)","v":"1048"},2,null,"Current transformer ratio - Input 1 (CT1)","unsigned integer",1,null,"from 1 to 9999",null,{"$f":"3","v":3}]
[{"$f":"B43+1","v":4171},{"$f":"B42+D42","v":4170},{"$f":"DEC2HEX(B43)","v":"104A"},2,null,"Current transformer ratio - Input 2 (CT2)","unsigned integer",1,null,null,null,{"$f":"3","v":3}]
[{"$f":"B44+1","v":4173},{"$f":"B43+D43","v":4172},{"$f":"DEC2HEX(B44)","v":"104C"},2,null,"Current transformer ratio - Input 3 (CT3)","unsigned integer",1,null,null,null,3]
[{"$f":"B45+1","v":4175},{"$f":"B44+D44","v":4174},{"$f":"DEC2HEX(B45)","v":"104E"},2,null,"Current transformer ratio - Input 4 (CT4)","unsigned integer",1,null,null,null,{"$f":"3","v":3}]
[4177,4176,"1050",2,null,"Current transformer ratio - Input 5 (CT5)","unsigned integer",1,null,null,null,3]
[4179,4178,"1052",2,null,"Current transformer ratio - Input 6 (CT6)","unsigned integer",1,null,null,null,{"$f":"3","v":3}]
[{"$f":"B48+1","v":4181},{"$f":"B47+D47","v":4180},{"$f":"DEC2HEX(B48)","v":"1054"},2,null,"Current transformer ratio - Input 7 (CT7)","unsigned integer",1,null,null,null,{"$f":"3","v":3}]
[4183,4182,"1056",2,null,"Current transformer ratio - Input 8 (CT8)","unsigned integer",1,null,null,null,{"$f":"3","v":3}]
[4185,4184,"1058",2,null,"Current transformer ratio - Input 9 (CT9)","unsigned integer",1,null,null,null,{"$f":"3","v":3}]
[4187,4186,"105A",2,null,"Current transformer ratio - Input 10 (CT10)","unsigned integer",1,null,null,null,{"$f":"3","v":3}]
[4189,4188,"105C",2,null,"Current transformer ratio - Input 11 (CT11)","unsigned integer",1,null,null,null,{"$f":"3","v":3}]
[4191,4190,"105E",2,null,"Current transformer ratio - Input 12 (CT12)","unsigned integer",1,null,null,null,{"$f":"3","v":3}]
[4193,4192,"1060",2,null,"Volatge transformer ratio - Input 1 (VT1)","unsigned integer",0.1,null,"from 10 to 30000\n(1 ÷ 3000)",null,{"$f":"3","v":3}]
[4195,4194,"1062",2,null,"Volatge transformer ratio - Input 2 (VT2)","unsigned integer",0.1,null,null,null,{"$f":"3","v":3}]
[4197,4196,"1064",2,null,"Volatge transformer ratio - Input 3 (VT3)","unsigned integer",0.1,null,null,null,{"$f":"3","v":3}]
[4199,4198,"1066",2,null,"Volatge transformer ratio - Input 4 (VT4)","unsigned integer",0.1,null,null,null,{"$f":"3","v":3}]
[4201,4200,"1068",2,null,"Volatge transformer ratio - Input 5 (VT5)","unsigned integer",0.1,null,null,null,{"$f":"3","v":3}]
[4203,4202,"106A",2,null,"Volatge transformer ratio - Input 6 (VT6)","unsigned integer",0.1,null,null,null,{"$f":"3","v":3}]
[4205,4204,"106C",2,null,"Volatge transformer ratio - Input 7 (VT7)","unsigned integer",0.1,null,null,null,{"$f":"3","v":3}]
[4207,4206,"106E",2,null,"Volatge transformer ratio - Input 8 (VT8)","unsigned integer",0.1,null,null,null,{"$f":"3","v":3}]
[4209,4208,"1070",2,null,"Volatge transformer ratio - Input 9 (VT9)","unsigned integer",0.1,null,null,null,{"$f":"3","v":3}]
[4211,4210,"1072",2,null,"Volatge transformer ratio - Input 10 (VT10)","unsigned integer",0.1,null,null,null,{"$f":"3","v":3}]
[4213,4212,"1074",2,null,"Volatge transformer ratio - Input 11 (VT11)","unsigned integer",0.1,null,null,null,{"$f":"3","v":3}]
[4215,4214,"1076",2,null,"Volatge transformer ratio - Input 12 (VT12)","unsigned integer",0.1,null,null,null,{"$f":"3","v":3}]
[{"$f":"B66+1","v":4217},{"$f":"B65+D65","v":4216},{"$f":"DEC2HEX(B66)","v":"1078"},2,null,"T OFF Input 1","unsigned integer",1,null,"0 ÷ 7","Time OFF is minimum time to wait before pulse may be considered complete\n\n\n0: 5 ms\n1: 10 ms\n2: 20 ms\n3: 40 ms\n4: 50 ms\n5: 100 ms\n6: 200 ms\n7: 500 ms",{"$f":"3","v":3}]
[4219,4218,"107A",2,null,"T OFF Input 2","unsigned integer",1,null,null,null,{"$f":"3","v":3}]
[4221,4220,"107C",2,null,"T OFF Input 3","unsigned integer",1,null,null,null,{"$f":"3","v":3}]
[4223,4222,"107E",2,null,"T OFF Input 4","unsigned integer",1,null,null,null,{"$f":"3","v":3}]
[4225,4224,"1080",2,null,"T OFF Input 5","unsigned integer",1,null,null,null,{"$f":"3","v":3}]
[4227,4226,"1082",2,null,"T OFF Input 6","unsigned integer",1,null,null,null,{"$f":"3","v":3}]
[4229,4228,"1084",2,null,"T OFF Input 7","unsigned integer",1,null,null,null,{"$f":"3","v":3}]
[4231,4230,"1086",2,null,"T OFF Input 8","unsigned integer",1,null,null,null,{"$f":"3","v":3}]
[4233,4232,"1088",2,null,"T OFF Input 9","unsigned integer",1,null,null,null,{"$f":"3","v":3}]
[4235,4234,"108A",2,null,"T OFF Input 10","unsigned integer",1,null,null,null,{"$f":"3","v":3}]
[4237,4236,"108C",2,null,"T OFF Input 11","unsigned integer",1,null,null,null,{"$f":"3","v":3}]
[4239,4238,"108E",2,null,"T OFF Input 12","unsigned integer",1,null,null,null,{"$f":"3","v":3}]
[{"$f":"B78+1","v":4243},{"$f":"GENERAL!A6","v":4242},{"$f":"GENERAL!B6","v":1092},{"$f":"SUM(D79)","v":2},null,{"$f":"GENERAL!E6","v":"Counter type"}]
[{"$f":"B79+1","v":4243},{"$f":"B78","v":4242},{"$f":"DEC2HEX(B79)","v":"1092"},2,null,"Counter type","unsigned integer",1,null,"0 ÷ 3","0: Potential Live (Pot Live)\n1: Potential Free (Pot Free)\n2: Potential Free, all inputs equals (PotAFree)\n3: GME Enel (GME S0)",{"$f":"3","v":3}]
[{"$f":"B80+1","v":4245},{"$f":"GENERAL!A7","v":4244},{"$f":"GENERAL!B7","v":1094},{"$f":"SUM(D81:D100)","v":40},null,{"$f":"GENERAL!E7","v":"Counters with Tarif"}]
[{"$f":"B81+1","v":4245},{"$f":"B80","v":4244},"1094",2,null,"Tarif 1  - Positive Active Energy","unsigned integer",1,null,null,"See Note 4",{"$f":"3","v":3}]
[4247,{"$f":"B81+D81","v":4246},{"$f":"DEC2HEX(B82)","v":"1096"},2,null,"Tarif 1  - Positive Reactive Energy","unsigned integer",1,null,null,null,{"$f":"3","v":3}]
[4249,{"$f":"B82+D82","v":4248},"1098",2,null,"Tarif 1  - Negative Active Energy","unsigned integer",1,null,null,null,{"$f":"3","v":3}]
[4251,4250,"109A",2,null,"Tarif 1  - Negative Reactive Energy","unsigned integer",1,null,null,null,{"$f":"3","v":3}]
[4253,4252,"109C",2,null,"Tarif 2  - Positive Active Energy","unsigned integer",1,null,null,null,{"$f":"3","v":3}]
[4255,4254,"109E",2,null,"Tarif 2  - Positive Reactive Energy","unsigned integer",1,null,null,null,{"$f":"3","v":3}]
[4257,4256,"10A0",2,null,"Tarif 2  - Negative Active Energy","unsigned integer",1,null,null,null,{"$f":"3","v":3}]
[4259,4258,"10A2",2,null,"Tarif 2  - Negative Reactive Energy","unsigned integer",1,null,null,null,{"$f":"3","v":3}]
[4261,4260,"10A4",2,null,"Tarif 3  - Positive Active Energy","unsigned integer",1,null,null,null,{"$f":"3","v":3}]
[4263,4262,"10A6",2,null,"Tarif 3  - Positive Reactive Energy","unsigned integer",1,null,null,null,{"$f":"3","v":3}]
[4265,4264,"10A8",2,null,"Tarif 3  - Negative Active Energy","unsigned integer",1,null,null,null,{"$f":"3","v":3}]
[4267,4266,"10AA",2,null,"Tarif 3  - Negative Reactive Energy","unsigned integer",1,null,null,null,{"$f":"3","v":3}]
[{"$f":"B93+1","v":4269},{"$f":"B92+D92","v":4268},"10AC",2,null,"Tarif 4  - Positive Active Energy","unsigned integer",1,null,null,null,{"$f":"3","v":3}]
[{"$f":"B94+1","v":4271},{"$f":"B93+D93","v":4270},"10AE",2,null,"Tarif 4  - Positive Reactive Energy","unsigned integer",1,null,null,null,{"$f":"3","v":3}]
[4273,4272,"10B0",2,null,"Tarif 4  - Negative Active Energy","unsigned integer",1,null,null,null,{"$f":"3","v":3}]
[4275,4274,"10B2",2,null,"Tarif 4  - Negative Reactive Energy","unsigned integer",1,null,null,null,{"$f":"3","v":3}]
[4277,4276,{"$f":"DEC2HEX(B97)","v":"10B4"},2,null,"Multi-tarif  - Positive Active Energy","unsigned integer",1]
[{"$f":"B98+1","v":4279},{"$f":"B97+D97","v":4278},"10B6",2,null,"Multi-tarif  - Positive Reactive Energy","unsigned integer",1,null,null,null,{"$f":"3","v":3}]
[4281,4280,"10B8",2,null,"Multi-tarif  - Negative Active Energy","unsigned integer",1,null,null,null,{"$f":"3","v":3}]
[4283,4282,"10BA",2,null,"Multi-tarif  - Negative Reactive Energy","unsigned integer",1,null,null,null,{"$f":"3","v":3}]
[{"$f":"B101+1","v":4353},{"$f":"GENERAL!A8","v":4352},{"$f":"GENERAL!B8","v":1100},{"$f":"SUM(D102:D141)","v":134},null,{"$f":"GENERAL!E8","v":"Counters"}]
[{"$f":"B102+1","v":4353},{"$f":"B101","v":4352},"1100",2,null,"Counter 1","unsigned integer",{"$f":"1","v":1},null,null,"See Note 2",{"$f":"3","v":3}]
[4355,{"$f":"B102+D102","v":4354},{"$f":"DEC2HEX(B103)","v":"1102"},2,null,"Counter 2","unsigned integer",{"$f":"1","v":1},null,null,null,{"$f":"3","v":3}]
[{"$f":"B104+1","v":4357},{"$f":"B103+D103","v":4356},"1104",2,null,"Counter 3","unsigned integer",{"$f":"1","v":1},null,null,null,{"$f":"3","v":3}]
[4359,4358,"1106",2,null,"Counter 4","unsigned integer",{"$f":"1","v":1},null,null,null,{"$f":"3","v":3}]
[4361,4360,"1108",2,null,"Counter 5","unsigned integer",{"$f":"1","v":1},null,null,null,{"$f":"3","v":3}]
[4363,4362,"110A",2,null,"Counter 6","unsigned integer",{"$f":"1","v":1},null,null,null,{"$f":"3","v":3}]
[4365,4364,"110C",2,null,"Counter 7","unsigned integer",{"$f":"1","v":1},null,null,"See Note 2 & Note 3",{"$f":"3","v":3}]
[4367,4366,"110E",2,null,"Counter 8","unsigned integer",{"$f":"1","v":1},null,null,"See Note 2 & Note 3",{"$f":"3","v":3}]
[4385,4384,"1120",2,null,"Counter 9","unsigned integer",{"$f":"1","v":1},null,null,"See Note 2",{"$f":"3","v":3}]
[4387,4386,"1122",2,null,"Counter 10","unsigned integer",{"$f":"1","v":1},null,null,null,{"$f":"3","v":3}]
[4389,4388,"1124",2,null,"Counter 11","unsigned integer",{"$f":"1","v":1},null,null,null,{"$f":"3","v":3}]
[4391,4390,"1126",2,null,"Counter 12","unsigned integer",{"$f":"1","v":1},null,null,null,{"$f":"3","v":3}]
[{"$f":"B114+1","v":4609},{"$f":"GENERAL!A9","v":4608},{"$f":"GENERAL!B9","v":1200},{"$f":"SUM(D115:D142)","v":56},null,{"$f":"GENERAL!E9","v":"Counting as displayed"}]
[{"$f":"B115+1","v":4609},{"$f":"B114","v":4608},{"$f":"DEC2HEX(B115)","v":"1200"},2,null,"Coounting 1 as displayed","signed integer",{"$f":"1","v":1},null,null,"See Note 5",{"$f":"3","v":3}]
[4611,{"$f":"B115+D115","v":4610},"1202",2,null,"Coounting 2 as displayed","signed integer",{"$f":"1","v":1},null,null,null,{"$f":"3","v":3}]
[4613,4612,"1204",2,null,"Coounting 3 as displayed","signed integer",{"$f":"1","v":1},null,null,null,{"$f":"3","v":3}]
[4615,4614,"1206",2,null,"Coounting 4 as displayed","signed integer",{"$f":"1","v":1},null,null,null,{"$f":"3","v":3}]
[4617,4616,"1208",2,null,"Coounting 5 as displayed","signed integer",{"$f":"1","v":1},null,null,null,{"$f":"3","v":3}]
[4619,4618,"120A",2,null,"Coounting 6 as displayed","signed integer",{"$f":"1","v":1},null,null,null,{"$f":"3","v":3}]
[4621,4620,"120C",2,null,"Coounting 7 as displayed","signed integer",1,null,null,null,{"$f":"3","v":3}]
[{"$f":"B122+1","v":4623},{"$f":"B121+D121","v":4622},{"$f":"DEC2HEX(B122)","v":"120E"},2,null,"Coounting 8 as displayed","signed integer",1,null,null,null,{"$f":"3","v":3}]
[4625,4624,"1210",2,null,"Coounting 9 as displayed","signed integer",1,null,null,null,{"$f":"3","v":3}]
[4627,4626,"1212",2,null,"Coounting 10 as displayed","signed integer",1,null,null,null,{"$f":"3","v":3}]
[4629,4628,"1214",2,null,"Coounting 11 as displayed","signed integer",1,null,null,null,{"$f":"3","v":3}]
[{"$f":"B126+1","v":4631},{"$f":"B125+D125","v":4630},{"$f":"DEC2HEX(B126)","v":"1216"},2,null,"Coounting 12 as displayed","unsigned integer",{"$f":"1","v":1},null,null,null,{"$f":"3","v":3}]
[4633,4632,"1218",2,null,"Tarif 1  - Positive Active Energy as displayed","unsigned integer",{"$f":"1","v":1},null,null,null,{"$f":"3","v":3}]
[4635,4634,"121A",2,null,"Tarif 1  - Positive Reactive Energy  as displayed","unsigned integer",{"$f":"1","v":1},null,null,null,{"$f":"3","v":3}]
[4637,4636,"121C",2,null,"Tarif 1  - Negative Active Energy  as displayed","unsigned integer",{"$f":"1","v":1},null,null,null,{"$f":"3","v":3}]
[{"$f":"B130+1","v":4639},{"$f":"B129+D129","v":4638},{"$f":"DEC2HEX(B130)","v":"121E"},2,null,"Tarif 1  - Negative Reactive Energy  as displayed","unsigned integer",{"$f":"1","v":1},null,null,null,{"$f":"3","v":3}]
[4641,4640,"1220",2,null,"Tarif 2  - Positive Active Energy as displayed","unsigned integer",{"$f":"1","v":1},null,null,null,{"$f":"3","v":3}]
[4643,4642,"1222",2,null,"Tarif 2  - Positive Reactive Energy  as displayed","unsigned integer",1,null,null,null,{"$f":"3","v":3}]
[{"$f":"B133+1","v":4645},{"$f":"B132+D132","v":4644},{"$f":"DEC2HEX(B133)","v":"1224"},2,null,"Tarif 2  - Negative Active Energy  as displayed","unsigned integer",1,null,null,null,{"$f":"3","v":3}]
[4647,4646,"1226",2,null,"Tarif 2  - Negative Reactive Energy  as displayed","unsigned integer",1,null,null,null,{"$f":"3","v":3}]
[4649,4648,"1228",2,null,"Tarif 3  - Positive Active Energy as displayed","unsigned integer",1,null,null,null,{"$f":"3","v":3}]
[4651,4650,"122A",2,null,"Tarif 3  - Positive Reactive Energy  as displayed","unsigned integer",1,null,null,null,{"$f":"3","v":3}]
[4653,4652,"122C",2,null,"Tarif 3  - Negative Active Energy  as displayed","unsigned integer",1,null,null,null,{"$f":"3","v":3}]
[4655,4654,"122E",2,null,"Tarif 3  - Negative Reactive Energy  as displayed","unsigned integer",1,null,null,null,{"$f":"3","v":3}]
[4657,4656,"1230",2,null,"Tarif 4  - Positive Active Energy as displayed","unsigned integer",1,null,null,null,{"$f":"3","v":3}]
[4659,4658,"1232",2,null,"Tarif 4  - Positive Reactive Energy  as displayed","unsigned integer",1,null,null,null,{"$f":"3","v":3}]
[4661,4660,"1234",2,null,"Tarif 4  - Negative Active Energy  as displayed","unsigned integer",1,null,null,null,{"$f":"3","v":3}]
[{"$f":"B142+1","v":4663},{"$f":"B141+D141","v":4662},{"$f":"DEC2HEX(B142)","v":"1236"},2,null,"Tarif 4  - Negative Reactive Energy  as displayed","unsigned integer",1]
[]
[null,"Note 1 - State of the Inputs"]
[null,"The answer is in the following format : FF 03 02 W0 W1\n\nTo know the inputs status, convert W0 W1 in bynary\nExample: answer 0000 0101h -> 000100000001b -> Inputs 1 and 9 are closed\n \nb0     =>  Input 1\n...\n...\nb11   => Input 12"]
[]
[null,"Note 2 - Counters"]
[null,"To give a meaning to pulses it is necessary to take in account the pulse weight.\nFor example:\nPulse weight = 0.01 kWh\nEnergy value (terminal side) = 1234 * 0.01 = 12.34 kWh"]
[]
[null,"Note 3 - Input 7 & 8"]
[null,"If S0 input has been selected, counters 7 and 8 contain the Total Positive Active Energy (7) and Total Positive\nReactive Energy (8) as pulse numbers:\nfor instance 12345 value means 12345 PULSES.\n\nIn all other cases they normally give the counts of input 7 and 8."]
[]
[null,"Note 4 - Counters with Tariffs"]
[null,"Only if Counter type = GME S0\n\nTo give a meaning to pulses it is necessary to take in account the pulse weight.\nFor example :\nInput counting = 12345678\nPulses per kWh = 10000\nEnergy value (terminal side) = 12345678 / 10000 = 1234.5678 kWh"]
[]
[null,"Note 5 - Counting as displayed"]
[null,"The communicated value is displayed value and not internal counting.\n\nFor instance:\n\nFirst case:\n8000 pulses per 1KWh\nInternal counting = 2000\nValue on display 00000.25 kWh\nCommunicated value 25\n\nSecond case:\n1 pulse any 0.1 kWh\nInternal counting = 5000\nValue on display 00000500 kWh\nCommunicated value 500"]

{"sheet":"HOLDING REGISTERS - Words (R&W)","index":4,"n_rows":1,"n_cols":14,"rows_kept":1,"cut":false,"hidden":false,"merged":[]}
["Register Number","Register Address (Dec)","Register Address (Hex)","Dimension [word]","Bit Position","Description","Type","Scale","Unit","Range","Note","Read Function Codes (Dec)","Write Function Codes (Hex)","Data Storing (2)"]